[Event "Titled Tuesday Blitz December 27 Early 2022"]
[White "Roque Sola, Jose Luis"]
[Black "Vargas, Mauricio"]
[WhiteFideId "5120390"]
[BlackFideId "4404572"]
[WhiteElo "2217"]
[BlackElo "2035"]
[Result "0-1"]
[Round "05"]
[TimeControl "180+2"]
[Date "2022.12.27"]
[WhiteClock "0:00:08"]
[BlackClock "0:01:12"]

1. c4 {[%clk 0:03:00]}  e5 {[%clk 0:02:38]} 2. Nc3 {[%clk 0:03:00]}  Nc6 {[%clk 0:02:38]} 3. Nf3 {[%clk 0:02:59]}  f5 {[%clk 0:02:38]} 4. d3 {[%clk 0:02:59]}  Nf6 {[%clk 0:02:38]} 5. g3 {[%clk 0:02:58]}  Bb4 {[%clk 0:02:38]} 6. Bd2 {[%clk 0:02:47]}  Bxc3 {[%clk 0:02:39]} 7. Bxc3 {[%clk 0:02:47]}  O-O {[%clk 0:02:40]} 8. Nxe5 {[%clk 0:02:37]}  d6 {[%clk 0:02:41]} 9. Nxc6 {[%clk 0:02:36]}  bxc6 {[%clk 0:02:39]} 10. Bg2 {[%clk 0:02:37]}  Bd7 {[%clk 0:02:38]} 11. O-O {[%clk 0:02:36]}  Qe8 {[%clk 0:02:38]} 12. a3 {[%clk 0:02:18]}  Qh5 {[%clk 0:02:37]} 13. e3 {[%clk 0:02:14]}  Qh6 {[%clk 0:02:37]} 14. b4 {[%clk 0:02:05]}  Rae8 {[%clk 0:02:36]} 15. Bd2 {[%clk 0:01:46]}  g5 {[%clk 0:02:31]} 16. Rb1 {[%clk 0:01:35]}  Ng4 {[%clk 0:02:30]} 17. h3 {[%clk 0:01:30]}  Nf6 {[%clk 0:02:30]} 18. f4 {[%clk 0:01:19]}  gxf4 {[%clk 0:02:25]} 19. exf4 {[%clk 0:01:20]}  Kh8 {[%clk 0:02:24]} 20. Qf3 {[%clk 0:01:14]}  Rg8 {[%clk 0:02:23]} 21. Bc3 {[%clk 0:01:14]}  Qg6 {[%clk 0:02:19]} 22. Kh2 {[%clk 0:01:12]}  h5 {[%clk 0:02:17]} 23. Bxf6+ {[%clk 0:01:07]}  Qxf6 {[%clk 0:02:17]} 24. Qxh5+ {[%clk 0:01:07]}  Kg7 {[%clk 0:02:16]} 25. Rbe1 {[%clk 0:00:59]}  Rh8 {[%clk 0:02:15]} 26. Qg5+ {[%clk 0:00:55]}  Kf7 {[%clk 0:02:13]} 27. Qxf6+ {[%clk 0:00:53]}  Kxf6 {[%clk 0:02:14]} 28. Kg1 {[%clk 0:00:49]}  Rhg8 {[%clk 0:02:12]} 29. Kf2 {[%clk 0:00:49]}  Re7 {[%clk 0:02:08]} 30. Rxe7 {[%clk 0:00:49]}  Kxe7 {[%clk 0:02:06]} 31. Re1+ {[%clk 0:00:50]}  Kf6 {[%clk 0:02:02]} 32. Bf3 {[%clk 0:00:47]}  Rh8 {[%clk 0:02:01]} 33. Bg2 {[%clk 0:00:45]}  Rg8 {[%clk 0:02:00]} 34. h4 {[%clk 0:00:45]}  Rg4 {[%clk 0:01:58]} 35. Bh3 {[%clk 0:00:44]}  Rg8 {[%clk 0:01:56]} 36. a4 {[%clk 0:00:40]}  a5 {[%clk 0:01:54]} 37. b5 {[%clk 0:00:36]}  cxb5 {[%clk 0:01:54]} 38. cxb5 {[%clk 0:00:37]}  Rb8 {[%clk 0:01:51]} 39. Rc1 {[%clk 0:00:37]}  Rc8 {[%clk 0:01:50]} 40. Bg2 {[%clk 0:00:33]}  Ke7 {[%clk 0:01:34]} 41. h5 {[%clk 0:00:31]}  Rh8 {[%clk 0:01:32]} 42. Bf3 {[%clk 0:00:30]}  Kd8 {[%clk 0:01:30]} 43. Rh1 {[%clk 0:00:22]}  Be6 {[%clk 0:01:27]} 44. h6 {[%clk 0:00:21]}  Bb3 {[%clk 0:01:26]} 45. Bd1 {[%clk 0:00:12]}  Bxd1 {[%clk 0:01:26]} 46. Rxd1 {[%clk 0:00:13]}  Rxh6 {[%clk 0:01:26]} 47. Kg2 {[%clk 0:00:12]}  Re6 {[%clk 0:01:26]} 48. Kf2 {[%clk 0:00:12]}  Rh6 {[%clk 0:01:25]} 49. Kg2 {[%clk 0:00:12]}  Re6 {[%clk 0:01:22]} 50. Rh1 {[%clk 0:00:08]}  Re2+ {[%clk 0:01:21]} 51. Kf3 {[%clk 0:00:08]}  Ra2 {[%clk 0:01:20]} 52. Rh5 {[%clk 0:00:08]}  Rxa4 {[%clk 0:01:18]} 53. Rxf5 {[%clk 0:00:09]}  Rb4 {[%clk 0:01:17]} 54. g4 {[%clk 0:00:08]}  Kd7 {[%clk 0:01:17]} 55. g5 {[%clk 0:00:08]}  Ke6 {[%clk 0:01:17]} 56. Rf6+ {[%clk 0:00:08]}  Ke7 {[%clk 0:01:17]} 57. Rf5 {[%clk 0:00:08]}  a4 {[%clk 0:01:16]} 58. g6 {[%clk 0:00:08]}  Rb1 {[%clk 0:01:13]} 59. g7 {[%clk 0:00:08]}  Rg1 {[%clk 0:01:12]} 0-1


[Site "https://www.chess.com"]

[Event "Titled Tuesday Blitz December 27 Early 2022"]
[White "Rosh Jain"]
[Black "Forgacs, Attila Jr."]
[WhiteFideId "25789465"]
[BlackFideId "773654"]
[WhiteElo "2248"]
[BlackElo "2264"]
[Result "0-1"]
[Round "05"]
[TimeControl "180+2"]
[Date "2022.12.27"]
[WhiteClock "0:00:47"]
[BlackClock "0:00:05"]

1. e4 {[%clk 0:02:55]}  e5 {[%clk 0:03:00]} 2. Nf3 {[%clk 0:02:54]}  Nc6 {[%clk 0:03:00]} 3. Bb5 {[%clk 0:02:54]}  a6 {[%clk 0:03:00]} 4. Ba4 {[%clk 0:02:53]}  Nf6 {[%clk 0:03:00]} 5. O-O {[%clk 0:02:52]}  Be7 {[%clk 0:03:01]} 6. Re1 {[%clk 0:02:52]}  b5 {[%clk 0:03:01]} 7. Bb3 {[%clk 0:02:52]}  O-O {[%clk 0:03:02]} 8. c3 {[%clk 0:02:52]}  d5 {[%clk 0:03:03]} 9. exd5 {[%clk 0:02:52]}  Nxd5 {[%clk 0:03:04]} 10. Nxe5 {[%clk 0:02:53]}  Nxe5 {[%clk 0:03:05]} 11. Rxe5 {[%clk 0:02:53]}  c6 {[%clk 0:03:05]} 12. d4 {[%clk 0:02:51]}  Bd6 {[%clk 0:03:06]} 13. Re1 {[%clk 0:02:52]}  Qh4 {[%clk 0:03:06]} 14. g3 {[%clk 0:02:52]}  Qh3 {[%clk 0:03:07]} 15. Qd3 {[%clk 0:02:52]}  Bg4 {[%clk 0:02:46]} 16. Bxd5 {[%clk 0:02:50]}  cxd5 {[%clk 0:02:44]} 17. Qf1 {[%clk 0:02:47]}  Qh5 {[%clk 0:02:44]} 18. Be3 {[%clk 0:02:47]}  f5 {[%clk 0:02:27]} 19. f4 {[%clk 0:02:45]}  g5 {[%clk 0:02:27]} 20. Nd2 {[%clk 0:02:44]}  Rae8 {[%clk 0:02:16]} 21. Qg2 {[%clk 0:02:37]}  gxf4 {[%clk 0:02:04]} 22. Qxd5+ {[%clk 0:02:37]}  Kg7 {[%clk 0:01:38]} 23. Bxf4 {[%clk 0:02:29]}  Bxf4 {[%clk 0:01:38]} 24. gxf4 {[%clk 0:02:30]}  Kh8 {[%clk 0:01:38]} 25. Re5 {[%clk 0:02:20]}  Bh3 {[%clk 0:00:43]} 26. Qf3 {[%clk 0:01:44]}  Rg8+ {[%clk 0:00:38]} 27. Kf2 {[%clk 0:01:43]}  Qh4+ {[%clk 0:00:30]} 28. Ke3 {[%clk 0:01:42]}  Bg2 {[%clk 0:00:15]} 29. Qf2 {[%clk 0:01:39]}  Qh3+ {[%clk 0:00:09]} 30. Nf3 {[%clk 0:01:37]}  Rxe5+ {[%clk 0:00:07]} 31. dxe5 {[%clk 0:01:25]}  Bxf3 {[%clk 0:00:02]} 32. Qxf3 {[%clk 0:01:25]}  Qxh2 {[%clk 0:00:03]} 33. Kd4 {[%clk 0:01:03]}  Qd2+ {[%clk 0:00:03]} 34. Kc5 {[%clk 0:01:01]}  Rc8+ {[%clk 0:00:03]} 35. Kb4 {[%clk 0:00:54]}  Qxb2+ {[%clk 0:00:03]} 36. Ka5 {[%clk 0:00:53]}  Qa3+ {[%clk 0:00:02]} 37. Kb6 {[%clk 0:00:53]}  Qc5+ {[%clk 0:00:03]} 38. Ka5 {[%clk 0:00:49]}  b4+ {[%clk 0:00:03]} 39. Ka4 {[%clk 0:00:49]}  Qb5+ {[%clk 0:00:04]} 40. Kb3 {[%clk 0:00:49]}  bxc3+ {[%clk 0:00:04]} 41. Kc2 {[%clk 0:00:46]}  Qb2+ {[%clk 0:00:04]} 42. Kd3 {[%clk 0:00:47]}  Qd2# {[%clk 0:00:05]} 0-1


[Site "https://www.chess.com"]

[Event "Titled Tuesday Blitz December 27 Early 2022"]
[White "Roy Chowdhury, Saptarshi"]
[Black "Starozhilov, Leonid"]
[WhiteFideId "5002974"]
[BlackFideId "14106752"]
[WhiteElo "2273"]
[BlackElo "2313"]
[Result "0-1"]
[Round "05"]
[TimeControl "180+2"]
[Date "2022.12.27"]
[WhiteClock "0:00:02"]
[BlackClock "0:00:06"]

1. e4 {[%clk 0:02:58]}  g6 {[%clk 0:02:59]} 2. d4 {[%clk 0:02:57]}  Bg7 {[%clk 0:03:00]} 3. Nf3 {[%clk 0:02:57]}  d6 {[%clk 0:03:00]} 4. Nc3 {[%clk 0:02:57]}  Nf6 {[%clk 0:03:00]} 5. Be3 {[%clk 0:02:57]}  O-O {[%clk 0:03:00]} 6. h3 {[%clk 0:02:54]}  c5 {[%clk 0:02:57]} 7. dxc5 {[%clk 0:02:41]}  Qa5 {[%clk 0:02:51]} 8. Bd3 {[%clk 0:02:38]}  dxc5 {[%clk 0:02:49]} 9. O-O {[%clk 0:02:37]}  Rd8 {[%clk 0:02:45]} 10. Qe2 {[%clk 0:02:36]}  Nc6 {[%clk 0:02:43]} 11. Bc4 {[%clk 0:02:32]}  Nd4 {[%clk 0:02:37]} 12. Bxd4 {[%clk 0:02:32]}  cxd4 {[%clk 0:02:37]} 13. Nd5 {[%clk 0:02:32]}  e6 {[%clk 0:02:11]} 14. Nxf6+ {[%clk 0:02:30]}  Bxf6 {[%clk 0:02:11]} 15. e5 {[%clk 0:02:31]}  Bg7 {[%clk 0:02:12]} 16. Rad1 {[%clk 0:02:29]}  b5 {[%clk 0:01:37]} 17. Bb3 {[%clk 0:02:23]}  Qb6 {[%clk 0:01:30]} 18. Rd3 {[%clk 0:02:04]}  a5 {[%clk 0:01:13]} 19. a3 {[%clk 0:02:02]}  a4 {[%clk 0:01:12]} 20. Ba2 {[%clk 0:02:02]}  b4 {[%clk 0:01:13]} 21. Bc4 {[%clk 0:01:45]}  Qc5 {[%clk 0:00:58]} 22. Rdd1 {[%clk 0:01:42]}  Bb7 {[%clk 0:00:57]} 23. axb4 {[%clk 0:01:38]}  Qxb4 {[%clk 0:00:58]} 24. Nxd4 {[%clk 0:01:37]}  Qxb2 {[%clk 0:00:57]} 25. Qd3 {[%clk 0:00:17]}  Bd5 {[%clk 0:00:20]} 26. Bxd5 {[%clk 0:00:17]}  Rxd5 {[%clk 0:00:19]} 27. c3 {[%clk 0:00:17]}  Rc8 {[%clk 0:00:19]} 28. Qa6 {[%clk 0:00:09]}  Rcd8 {[%clk 0:00:11]} 29. Qxa4 {[%clk 0:00:08]}  Qxc3 {[%clk 0:00:11]} 30. Nf3 {[%clk 0:00:08]}  h6 {[%clk 0:00:07]} 31. Rxd5 {[%clk 0:00:04]}  exd5 {[%clk 0:00:08]} 32. Rd1 {[%clk 0:00:02]}  Qc7 {[%clk 0:00:06]} 0-1


[Site "https://www.chess.com"]

[Event "Titled Tuesday Blitz December 27 Early 2022"]
[White "Royal, Shreyas"]
[Black "Makarian, Rudik"]
[WhiteFideId "448869"]
[BlackFideId "44105681"]
[WhiteElo "2438"]
[BlackElo "2545"]
[Result "0-1"]
[Round "05"]
[TimeControl "180+2"]
[Date "2022.12.27"]
[WhiteClock "0:00:52"]
[BlackClock "0:00:04"]

1. e4 {[%clk 0:03:00]}  e5 {[%clk 0:02:59]} 2. Nf3 {[%clk 0:03:00]}  Nc6 {[%clk 0:03:00]} 3. Bb5 {[%clk 0:02:59]}  a6 {[%clk 0:02:59]} 4. Ba4 {[%clk 0:02:59]}  Bc5 {[%clk 0:03:00]} 5. c3 {[%clk 0:02:55]}  Nge7 {[%clk 0:02:59]} 6. d4 {[%clk 0:02:54]}  exd4 {[%clk 0:03:00]} 7. cxd4 {[%clk 0:02:55]}  Bb4+ {[%clk 0:03:00]} 8. Bd2 {[%clk 0:02:53]}  Bxd2+ {[%clk 0:03:00]} 9. Qxd2 {[%clk 0:02:53]}  d5 {[%clk 0:03:01]} 10. e5 {[%clk 0:02:53]}  Bg4 {[%clk 0:02:55]} 11. Nc3 {[%clk 0:02:50]}  O-O {[%clk 0:02:52]} 12. O-O {[%clk 0:02:41]}  Bxf3 {[%clk 0:02:51]} 13. gxf3 {[%clk 0:02:42]}  f6 {[%clk 0:02:21]} 14. f4 {[%clk 0:02:31]}  Qd7 {[%clk 0:02:15]} 15. Kh1 {[%clk 0:02:27]}  fxe5 {[%clk 0:01:48]} 16. Bxc6 {[%clk 0:02:24]}  bxc6 {[%clk 0:01:38]} 17. fxe5 {[%clk 0:02:21]}  Rf3 {[%clk 0:01:39]} 18. Qe2 {[%clk 0:02:15]}  Raf8 {[%clk 0:01:37]} 19. e6 {[%clk 0:02:11]}  Qd6 {[%clk 0:01:36]} 20. Rae1 {[%clk 0:02:12]}  Qf4 {[%clk 0:01:27]} 21. Qe5 {[%clk 0:01:59]}  Qxe5 {[%clk 0:01:27]} 22. Rxe5 {[%clk 0:02:00]}  Rxf2 {[%clk 0:01:28]} 23. Rxf2 {[%clk 0:01:57]}  Rxf2 {[%clk 0:01:28]} 24. Na4 {[%clk 0:01:58]}  Rd2 {[%clk 0:01:27]} 25. Nc5 {[%clk 0:01:57]}  Rxb2 {[%clk 0:01:25]} 26. Nxa6 {[%clk 0:01:57]}  Rxa2 {[%clk 0:01:25]} 27. Nxc7 {[%clk 0:01:56]}  Rd2 {[%clk 0:01:26]} 28. Ne8 {[%clk 0:01:47]}  Rxd4 {[%clk 0:01:22]} 29. Kg2 {[%clk 0:01:47]}  Re4 {[%clk 0:01:19]} 30. Rxe4 {[%clk 0:01:46]}  dxe4 {[%clk 0:01:20]} 31. Nd6 {[%clk 0:01:46]}  e3 {[%clk 0:01:11]} 32. Kf3 {[%clk 0:01:43]}  Nd5 {[%clk 0:01:11]} 33. Nc4 {[%clk 0:01:41]}  Kf8 {[%clk 0:01:10]} 34. Ne5 {[%clk 0:01:35]}  Ke7 {[%clk 0:01:08]} 35. Nxc6+ {[%clk 0:01:35]}  Kxe6 {[%clk 0:01:08]} 36. Nd8+ {[%clk 0:01:34]}  Kf5 {[%clk 0:01:05]} 37. Nf7 {[%clk 0:01:34]}  Kf6 {[%clk 0:00:59]} 38. Nd6 {[%clk 0:01:34]}  Ke5 {[%clk 0:01:00]} 39. Ne8 {[%clk 0:01:33]}  g6 {[%clk 0:00:56]} 40. Ng7 {[%clk 0:01:30]}  Kd4 {[%clk 0:00:56]} 41. Ne6+ {[%clk 0:01:28]}  Kd3 {[%clk 0:00:56]} 42. Nc5+ {[%clk 0:01:29]}  Kd2 {[%clk 0:00:55]} 43. Nb3+ {[%clk 0:01:26]}  Kc3 {[%clk 0:00:52]} 44. Nc5 {[%clk 0:01:23]}  Kd2 {[%clk 0:00:46]} 45. Nb3+ {[%clk 0:01:22]}  Ke1 {[%clk 0:00:47]} 46. Nc1 {[%clk 0:01:08]}  Kd1 {[%clk 0:00:44]} 47. Ne2 {[%clk 0:01:07]}  Kd2 {[%clk 0:00:40]} 48. Ng3 {[%clk 0:01:07]}  Ke1 {[%clk 0:00:35]} 49. Ke4 {[%clk 0:01:05]}  Kf2 {[%clk 0:00:30]} 50. Kxd5 {[%clk 0:00:56]}  h5 {[%clk 0:00:05]} 51. Ke4 {[%clk 0:00:51]}  h4 {[%clk 0:00:02]} 52. Nh1+ {[%clk 0:00:51]}  Kg2 {[%clk 0:00:01]} 53. Kxe3 {[%clk 0:00:51]}  Kxh1 {[%clk 0:00:02]} 54. Kf4 {[%clk 0:00:47]}  Kxh2 {[%clk 0:00:01]} 55. Kg5 {[%clk 0:00:48]}  Kg3 {[%clk 0:00:01]} 56. Kxg6 {[%clk 0:00:49]}  h3 {[%clk 0:00:01]} 57. Kf5 {[%clk 0:00:50]}  h2 {[%clk 0:00:02]} 58. Ke5 {[%clk 0:00:51]}  h1=Q {[%clk 0:00:03]} 59. Kd6 {[%clk 0:00:52]}  Qf3 {[%clk 0:00:04]} 0-1


[Site "https://www.chess.com"]

[Event "Titled Tuesday Blitz December 27 Early 2022"]
[White "Rustemov, Alexander"]
[Black "Skvortsov, Andrei"]
[WhiteFideId "4119002"]
[BlackFideId "24108600"]
[WhiteElo "2525"]
[BlackElo "2313"]
[Result "0-1"]
[Round "05"]
[TimeControl "180+2"]
[Date "2022.12.27"]
[WhiteClock "0:00:08"]
[BlackClock "0:00:14"]

1. d4 {[%clk 0:03:00]}  Nf6 {[%clk 0:02:53]} 2. c4 {[%clk 0:03:01]}  e6 {[%clk 0:02:53]} 3. Nf3 {[%clk 0:03:01]}  d5 {[%clk 0:02:53]} 4. Nc3 {[%clk 0:03:01]}  Be7 {[%clk 0:02:52]} 5. Bg5 {[%clk 0:02:58]}  h6 {[%clk 0:02:51]} 6. Bh4 {[%clk 0:02:55]}  dxc4 {[%clk 0:02:52]} 7. e3 {[%clk 0:02:52]}  c5 {[%clk 0:02:52]} 8. Bxc4 {[%clk 0:02:51]}  cxd4 {[%clk 0:02:49]} 9. Nxd4 {[%clk 0:02:48]}  a6 {[%clk 0:02:45]} 10. O-O {[%clk 0:02:47]}  O-O {[%clk 0:02:43]} 11. Qe2 {[%clk 0:02:36]}  Bd7 {[%clk 0:02:42]} 12. Rfd1 {[%clk 0:02:35]}  Qc7 {[%clk 0:02:42]} 13. Rac1 {[%clk 0:02:34]}  Nc6 {[%clk 0:02:42]} 14. Bg3 {[%clk 0:02:20]}  Qb6 {[%clk 0:02:38]} 15. Nxc6 {[%clk 0:02:03]}  Bxc6 {[%clk 0:02:37]} 16. f3 {[%clk 0:02:03]}  Rfd8 {[%clk 0:02:29]} 17. Bf2 {[%clk 0:02:02]}  Nd7 {[%clk 0:02:20]} 18. e4 {[%clk 0:02:01]}  Bc5 {[%clk 0:02:20]} 19. Bb3 {[%clk 0:01:56]}  Ne5 {[%clk 0:02:17]} 20. f4 {[%clk 0:01:48]}  Bxf2+ {[%clk 0:02:16]} 21. Qxf2 {[%clk 0:01:46]}  Qxf2+ {[%clk 0:02:16]} 22. Kxf2 {[%clk 0:01:47]}  Nd3+ {[%clk 0:02:16]} 23. Ke3 {[%clk 0:01:41]}  Nxc1 {[%clk 0:01:55]} 24. Rxc1 {[%clk 0:01:42]}  Kf8 {[%clk 0:01:52]} 25. g3 {[%clk 0:01:40]}  Ke7 {[%clk 0:01:50]} 26. h4 {[%clk 0:01:38]}  Rd7 {[%clk 0:01:49]} 27. Rd1 {[%clk 0:01:26]}  Rxd1 {[%clk 0:01:45]} 28. Bxd1 {[%clk 0:01:26]}  f6 {[%clk 0:01:45]} 29. a3 {[%clk 0:01:24]}  a5 {[%clk 0:01:45]} 30. Be2 {[%clk 0:01:23]}  e5 {[%clk 0:01:37]} 31. f5 {[%clk 0:01:22]}  Kd6 {[%clk 0:01:33]} 32. g4 {[%clk 0:01:18]}  Kc5 {[%clk 0:01:32]} 33. Na2 {[%clk 0:00:57]}  Rd8 {[%clk 0:01:29]} 34. b4+ {[%clk 0:00:56]}  axb4 {[%clk 0:01:28]} 35. axb4+ {[%clk 0:00:57]}  Kd6 {[%clk 0:01:19]} 36. Nc3 {[%clk 0:00:56]}  Ra8 {[%clk 0:01:18]} 37. Kd2 {[%clk 0:00:53]}  Ra3 {[%clk 0:01:10]} 38. Kc2 {[%clk 0:00:52]}  Rxc3+ {[%clk 0:00:58]} 39. Kxc3 {[%clk 0:00:51]}  Bxe4 {[%clk 0:00:58]} 40. Kd2 {[%clk 0:00:49]}  Bg2 {[%clk 0:00:51]} 41. Ke3 {[%clk 0:00:48]}  Kd5 {[%clk 0:00:51]} 42. h5 {[%clk 0:00:38]}  b6 {[%clk 0:00:42]} 43. Kd3 {[%clk 0:00:35]}  e4+ {[%clk 0:00:40]} 44. Ke3 {[%clk 0:00:35]}  Ke5 {[%clk 0:00:40]} 45. Bd1 {[%clk 0:00:35]}  Bf3 {[%clk 0:00:25]} 46. Bxf3 {[%clk 0:00:31]}  exf3 {[%clk 0:00:26]} 47. Kxf3 {[%clk 0:00:31]}  Kd4 {[%clk 0:00:20]} 48. Kf4 {[%clk 0:00:32]}  b5 {[%clk 0:00:20]} 49. Kf3 {[%clk 0:00:32]}  Kc4 {[%clk 0:00:21]} 50. Ke4 {[%clk 0:00:33]}  Kxb4 {[%clk 0:00:21]} 51. Kd5 {[%clk 0:00:33]}  Kc3 {[%clk 0:00:21]} 52. Ke6 {[%clk 0:00:34]}  b4 {[%clk 0:00:21]} 53. Kf7 {[%clk 0:00:35]}  b3 {[%clk 0:00:22]} 54. Kxg7 {[%clk 0:00:36]}  b2 {[%clk 0:00:23]} 55. Kxf6 {[%clk 0:00:16]}  b1=Q {[%clk 0:00:22]} 56. Kg7 {[%clk 0:00:16]}  Qe4 {[%clk 0:00:17]} 57. f6 {[%clk 0:00:15]}  Qe5 {[%clk 0:00:14]} 58. Kxh6 {[%clk 0:00:07]}  Qxf6+ {[%clk 0:00:14]} 59. Kh7 {[%clk 0:00:08]}  Qg5 {[%clk 0:00:14]} 60. h6 {[%clk 0:00:08]}  Kd4 {[%clk 0:00:14]} 61. Kh8 {[%clk 0:00:08]}  Qxh6+ {[%clk 0:00:14]} 0-1


[Site "https://www.chess.com"]

[Event "Titled Tuesday Blitz December 27 Early 2022"]
[White "Sargissyan, Sargis"]
[Black "Johnson, Ben"]
[WhiteFideId "13303210"]
[BlackFideId "2010917"]
[WhiteElo "2234"]
[BlackElo "1961"]
[Result "1-0"]
[Round "05"]
[TimeControl "180+2"]
[Date "2022.12.27"]
[WhiteClock "0:00:13"]
[BlackClock "0:00:01"]

1. e4 {[%clk 0:03:00]}  c5 {[%clk 0:02:57]} 2. Nf3 {[%clk 0:03:00]}  Nc6 {[%clk 0:02:57]} 3. d4 {[%clk 0:03:01]}  cxd4 {[%clk 0:02:57]} 4. Nxd4 {[%clk 0:03:02]}  Nf6 {[%clk 0:02:57]} 5. Nc3 {[%clk 0:03:02]}  e5 {[%clk 0:02:58]} 6. Ndb5 {[%clk 0:03:02]}  d6 {[%clk 0:02:58]} 7. Bg5 {[%clk 0:03:03]}  a6 {[%clk 0:02:59]} 8. Na3 {[%clk 0:03:03]}  b5 {[%clk 0:02:59]} 9. Nd5 {[%clk 0:03:04]}  Be7 {[%clk 0:02:59]} 10. Bxf6 {[%clk 0:03:05]}  Bxf6 {[%clk 0:03:00]} 11. c3 {[%clk 0:03:05]}  O-O {[%clk 0:02:59]} 12. Nc2 {[%clk 0:03:06]}  Rb8 {[%clk 0:03:00]} 13. h4 {[%clk 0:03:04]}  g6 {[%clk 0:02:56]} 14. g3 {[%clk 0:02:56]}  Bg7 {[%clk 0:02:44]} 15. h5 {[%clk 0:02:57]}  Bf6 {[%clk 0:02:37]} 16. Bg2 {[%clk 0:01:31]}  Bg5 {[%clk 0:02:34]} 17. hxg6 {[%clk 0:01:24]}  hxg6 {[%clk 0:02:33]} 18. Bh3 {[%clk 0:00:53]}  Be6 {[%clk 0:02:15]} 19. Bxe6 {[%clk 0:00:48]}  fxe6 {[%clk 0:02:15]} 20. Nde3 {[%clk 0:00:48]}  Ne7 {[%clk 0:02:03]} 21. Qg4 {[%clk 0:00:47]}  Bxe3 {[%clk 0:01:49]} 22. Qxe6+ {[%clk 0:00:45]}  Kg7 {[%clk 0:01:49]} 23. Nxe3 {[%clk 0:00:46]}  Rf6 {[%clk 0:01:13]} 24. Qh3 {[%clk 0:00:44]}  Qh8 {[%clk 0:01:12]} 25. Qxh8+ {[%clk 0:00:40]}  Rxh8 {[%clk 0:01:12]} 26. Rxh8 {[%clk 0:00:41]}  Kxh8 {[%clk 0:01:13]} 27. Ng4 {[%clk 0:00:41]}  Re6 {[%clk 0:01:05]} 28. a4 {[%clk 0:00:40]}  b4 {[%clk 0:00:54]} 29. cxb4 {[%clk 0:00:35]}  d5 {[%clk 0:00:55]} 30. b5 {[%clk 0:00:31]}  dxe4 {[%clk 0:00:53]} 31. bxa6 {[%clk 0:00:27]}  Rxa6 {[%clk 0:00:53]} 32. Nxe5 {[%clk 0:00:26]}  Nd5 {[%clk 0:00:50]} 33. Ke2 {[%clk 0:00:21]}  Kg7 {[%clk 0:00:46]} 34. a5 {[%clk 0:00:18]}  Nb4 {[%clk 0:00:31]} 35. Nc4 {[%clk 0:00:18]}  Kf6 {[%clk 0:00:27]} 36. Ra4 {[%clk 0:00:17]}  Nc6 {[%clk 0:00:21]} 37. Ke3 {[%clk 0:00:16]}  Ne7 {[%clk 0:00:12]} 38. b4 {[%clk 0:00:15]}  Nd5+ {[%clk 0:00:10]} 39. Kd4 {[%clk 0:00:15]}  Nc7 {[%clk 0:00:07]} 40. Kc5 {[%clk 0:00:14]}  Kf5 {[%clk 0:00:05]} 41. b5 {[%clk 0:00:14]}  Re6 {[%clk 0:00:03]} 42. a6 {[%clk 0:00:14]}  e3 {[%clk 0:00:02]} 43. Nxe3+ {[%clk 0:00:13]}  Kf6 {[%clk 0:00:01]} 44. Nc4 {[%clk 0:00:13]} 1-0


[Site "https://www.chess.com"]

[Event "Titled Tuesday Blitz December 27 Early 2022"]
[White "Serpi, Andrea"]
[Black "Danaci, Ege"]
[WhiteFideId "2847499"]
[BlackFideId "34506748"]
[WhiteElo "2191"]
[BlackElo "2088"]
[Result "1-0"]
[Round "05"]
[TimeControl "180+2"]
[Date "2022.12.27"]
[WhiteClock "0:00:17"]
[BlackClock "0:00:05"]

1. e4 {[%clk 0:02:57]}  c6 {[%clk 0:02:56]} 2. Nc3 {[%clk 0:02:55]}  d5 {[%clk 0:02:56]} 3. Nf3 {[%clk 0:02:54]}  Bg4 {[%clk 0:02:56]} 4. h3 {[%clk 0:02:53]}  Bxf3 {[%clk 0:02:56]} 5. Qxf3 {[%clk 0:02:54]}  e6 {[%clk 0:02:57]} 6. Be2 {[%clk 0:02:48]}  dxe4 {[%clk 0:02:55]} 7. Nxe4 {[%clk 0:02:47]}  Nd7 {[%clk 0:02:56]} 8. d4 {[%clk 0:02:44]}  Ngf6 {[%clk 0:02:56]} 9. O-O {[%clk 0:02:37]}  Nxe4 {[%clk 0:02:55]} 10. Qxe4 {[%clk 0:02:37]}  Nf6 {[%clk 0:02:56]} 11. Qd3 {[%clk 0:02:32]}  Be7 {[%clk 0:02:56]} 12. c4 {[%clk 0:02:29]}  O-O {[%clk 0:02:53]} 13. Bf3 {[%clk 0:02:26]}  Qb6 {[%clk 0:02:50]} 14. Bd2 {[%clk 0:02:21]}  Rfd8 {[%clk 0:02:32]} 15. Bc3 {[%clk 0:01:58]}  Bb4 {[%clk 0:02:01]} 16. Rfd1 {[%clk 0:01:37]}  c5 {[%clk 0:02:00]} 17. dxc5 {[%clk 0:01:26]}  Bxc5 {[%clk 0:01:46]} 18. Qe2 {[%clk 0:01:24]}  Be7 {[%clk 0:01:43]} 19. Rxd8+ {[%clk 0:01:07]}  Rxd8 {[%clk 0:01:43]} 20. Rd1 {[%clk 0:01:08]}  h6 {[%clk 0:01:34]} 21. Rxd8+ {[%clk 0:01:04]}  Qxd8 {[%clk 0:01:32]} 22. Qd2 {[%clk 0:01:01]}  Qc7 {[%clk 0:01:32]} 23. b3 {[%clk 0:00:54]}  Nd7 {[%clk 0:01:33]} 24. Qd4 {[%clk 0:00:52]}  Bf6 {[%clk 0:01:31]} 25. Qd3 {[%clk 0:00:45]}  Bxc3 {[%clk 0:01:31]} 26. Qxc3 {[%clk 0:00:46]}  Qd6 {[%clk 0:01:20]} 27. Bxb7 {[%clk 0:00:40]}  Qd1+ {[%clk 0:01:02]} 28. Kh2 {[%clk 0:00:40]}  Qe2 {[%clk 0:01:03]} 29. Qd4 {[%clk 0:00:29]}  Ne5 {[%clk 0:00:35]} 30. Be4 {[%clk 0:00:25]}  Ng6 {[%clk 0:00:16]} 31. Bxg6 {[%clk 0:00:24]}  fxg6 {[%clk 0:00:14]} 32. Qxa7 {[%clk 0:00:24]}  Qe5+ {[%clk 0:00:13]} 33. g3 {[%clk 0:00:23]}  Qd6 {[%clk 0:00:12]} 34. Qe3 {[%clk 0:00:21]}  e5 {[%clk 0:00:12]} 35. c5 {[%clk 0:00:20]}  Qd5 {[%clk 0:00:12]} 36. b4 {[%clk 0:00:19]}  Qxa2 {[%clk 0:00:10]} 37. c6 {[%clk 0:00:18]}  Qc4 {[%clk 0:00:10]} 38. Qc5 {[%clk 0:00:17]}  Qf1 {[%clk 0:00:05]} 39. c7 {[%clk 0:00:17]} 1-0


[Site "https://www.chess.com"]